Workbook

Sheet Вт 2 нед
A1: Рацион: ШК 11-18 лет | B1: 12 лет и старше | E1: День: | F1: вторник | I1: Школа | K1: СОШ с. Нижнеулу-Елга
D2: Неделя: | F2: 2 | I2: Возраст: | K2: 12 лет и старше
A3: № рец. | B3: Прием пищи, наименование блюда | D3: Масса порции | E3: Пищевые вещества (г) | H3: Энерге- тическая ценность (ккал) | I3: Витамины (мг) | M3: Минеральные вещества (мг)
E4: Б | F4: Ж | G4: У | I4: B1 | J4: C | K4: A | L4: E | M4: Ca | N4: P | O4: Mg | P4: Fe
A5: 1 | B5: 2 | D5: 3 | E5: 4 | F5: 5 | G5: 6 | H5: 7 | I5: 8 | J5: 9 | K5: 10 | L5: 11 | M5: 12 | N5: 13 | O5: 14 | P5: 15
A6: Завтрак
A7: 506.25 | B7: Тефтели из говядины с томатным соусом | D7: 60/40 | E7: 8.76 | F7: 12.21 | G7: 8.85 | H7: 180.64 | I7: 0.08 | J7: 4.16 | K7: 62.64 | L7: 2.85 | M7: 31.69 | N7: 105.20 | O7: 17.5 | P7: 1.57
A8: 175.12 | B8: Каша гречневая вязкая с маслом | D8: 180/5 | E8: 5.71 | F8: 5.11 | G8: 25.76 | H8: 171.65 | I8: 0.19 | K8: 23.4 | L8: 0.41 | M8: 13.51 | N8: 135.6 | O8: 90.2 | P8: 3.05
A9: 285 | B9: Чай с лимоном и сахаром | D9: 200 | E9: 0,06 | F9: 0,01 | G9: 10,19 | H9: 42,28 | J9: 2,8 | K9: 0,14 | L9: 0,01 | M9: 3,1 | N9: 1,54 | O9: 0,84 | P9: 0,07
A10: 420.02 | B10: Хлеб пшеничный обогащенный витаминами для детского питания | D10: 40 | E10: 3.2 | F10: 0.4 | G10: 22 | H10: 104 | I10: 0.14 | L10: 0.6 | M10: 8 | N10: 26 | O10: 5.6 | P10: 1
A11: 1,2 | B11: Хлеб ржано-пшеничный для детского питания | D11: 30 | E11: 2.40 | F11: 0,3 | G11: 13,8 | H11: 66 | I11: 0.12 | L11: 0,51 | M11: 8,7 | N11: 39 | O11: 12,6 | P11: 0,9
A12: Итого за Завтрак суммарная масса порции: 555 | E12: =E7+E8+E9+E10+E11 -> 20.13 | F12: =F7+F8+F9+F10+F11 -> 18.03 | G12: =G7+G8+G9+G10+G11 -> 80.60 | H12: =H7+H8+H9+H10+H11 -> 564.57 | I12: =I7+I8+I9+I10+I11 -> 0.53 | J12: =J7+J8+J9+J10+J11 -> 6.96 | K12: =K7+K8+K9+K10+K11 -> 86.18 | L12: =L7+L8+L9+L10+L11 -> 4.38 | M12: =M7+M8+M9+M10+M11 -> 65.00 | N12: =N7+N8+N9+N10+N11 -> 307.34 | O12: =O7+O8+O9+O10+O11 -> 126.75 | P12: =P7+P8+P9+P10+P11 -> 6.59
A13: Обед
A14: ттк 66,65 | B14: Суп-лапша(вермишель) с мясом птицы( филе) | D14: 250/30 | E14: 15.67 | F14: 16.14 | G14: 15.71 | H14: 170 | I14: 0.07 | J14: 1.8 | K14: 207 | L14: 2.34 | M14: 15.09 | N14: 11.4 | O14: 12.47 | P14: 1.19
A15: 206 | B15: Плов с изюмом | D15: 250 | E15: 5.8 | F15: 22.4 | G15: 64.5 | H15: 483 | I15: 0.07 | J15: 2.27 | K15: 37.35 | L15: 0.29 | M15: 25.6 | N15: 81.24 | O15: 50.17 | P15: 1.11
A16: 282.11 | B16: Чай витаминизированный | D16: 200 | G16: 9.7 | H16: 39 | I16: 0.15 | J16: 10
A17: 420.02 | B17: Хлеб пшеничный обогащенный витаминами для детского питания | D17: 40 | E17: 3.2 | F17: 0.4 | G17: 22 | H17: 104 | I17: 0.14 | L17: 0.6 | M17: 8 | N17: 26 | O17: 5.6 | P17: 1
A18: 1,2 | B18: Хлеб ржано-пшеничный для детского питания | D18: 30 | E18: 2,4 | F18: 0,3 | G18: 13,8 | H18: 66 | I18: 0,12 | L18: 0,51 | M18: 8,7 | N18: 39 | O18: 12,6 | P18: 0,9
A19: Итого за Обед суммарная масса порции: 800 | E19: =E14+E16+E17+E18+E15 -> 27.07 | F19: =F14+F16+F17+F18+F15 -> 39.24 | G19: =G14+G16+G17+G18+G15 -> 125.71 | H19: =H14+H16+H17+H18+H15 -> 862 | I19: =I14+I16+I17+I18+I15 -> 0.55 | J19: =J14+J16+J17+J18+J15 -> 14.07 | K19: =K14+K16+K17+K18+K15 -> 244.35 | L19: =L14+L16+L17+L18+L15 -> 3.74 | M19: =M14+M16+M17+M18+M15 -> 57.39 | N19: =N14+N16+N17+N18+N15 -> 157.64 | O19: =O14+O16+O17+O18+O15 -> 80.84 | P19: =P14+P16+P17+P18+P15 -> 4.2
A20: Итого за день | E20: =E12+E19 -> 47.2 | F20: =F12+F19 -> 57.27 | G20: =G12+G19 -> 206.31 | H20: =H12+H19 -> 1426.57 | I20: =I12+I19 -> 1.08 | J20: =J12+J19 -> 21.03 | K20: =K12+K19 -> 330.53 | L20: =L12+L19 -> 8.12 | M20: =M12+M19 -> 122.39 | N20: =N12+N19 -> 464.98 | O20: =O12+O19 -> 207.59 | P20: =P12+P19 -> 10.79
